[Event "*** SCC Grand Prix: Titled Tuesday Blitz"]
[Site "Chess.com"]
[Date "2020.07.21"]
[Round "7"]
[White "Gulkov_Igor"]
[Black "esrosenberg"]
[Result "1-0"]
[WhiteElo "2385"]
[BlackElo "2203"]
[TimeControl "180+1"]
[EndTime "11:19:02 PDT"]
[Termination "Gulkov_Igor won on time"]

1. Nf3 {[%clk 0:03:00.9]} 1... Nf6 {[%clk 0:02:59.4]} 2. c4 {[%clk 0:02:57.8]}
2... e6 {[%clk 0:02:59.5]} 3. Nc3 {[%clk 0:02:56.9]} 3... d5 {[%clk 0:02:57.7]}
4. d4 {[%clk 0:02:56.8]} 4... Bb4 {[%clk 0:02:55.8]} 5. Bg5 {[%clk 0:02:56.3]}
5... h6 {[%clk 0:02:55.5]} 6. Bxf6 {[%clk 0:02:56]} 6... Qxf6 {[%clk 0:02:55.3]}
7. e3 {[%clk 0:02:56.3]} 7... O-O {[%clk 0:02:54.9]} 8. Rc1 {[%clk 0:02:55.5]}
8... dxc4 {[%clk 0:02:52.6]} 9. Bxc4 {[%clk 0:02:54.5]} 9... c5 {[%clk
0:02:52.3]} 10. O-O {[%clk 0:02:53.3]} 10... Bxc3 {[%clk 0:02:33.1]} 11. Rxc3
{[%clk 0:02:52.3]} 11... Nd7 {[%clk 0:02:32]} 12. Bb5 {[%clk 0:02:50.1]} 12...
cxd4 {[%clk 0:02:25.8]} 13. Qxd4 {[%clk 0:02:49]} 13... e5 {[%clk 0:02:02.2]}
14. Qe4 {[%clk 0:02:28.8]} 14... a6 {[%clk 0:00:44.4]} 15. Bxd7 {[%clk
0:02:24.1]} 15... Bxd7 {[%clk 0:00:45.3]} 16. Qxe5 {[%clk 0:02:24.4]} 16... Qg6
{[%clk 0:00:33.8]} 17. Nd4 {[%clk 0:02:14.2]} 17... Rfe8 {[%clk 0:00:24.9]} 18.
Qg3 {[%clk 0:02:09.2]} 18... Qf6 {[%clk 0:00:21.6]} 19. Rfc1 {[%clk 0:02:03.7]}
19... Rad8 {[%clk 0:00:20.4]} 20. h3 {[%clk 0:02:02.6]} 20... b5 {[%clk
0:00:16.5]} 21. a3 {[%clk 0:01:54.2]} 21... Kh7 {[%clk 0:00:15.6]} 22. Rc5
{[%clk 0:01:53.2]} 22... Re4 {[%clk 0:00:13.8]} 23. Rc7 {[%clk 0:01:34.1]} 23...
Be6 {[%clk 0:00:13.4]} 24. R1c6 {[%clk 0:01:29.8]} 24... Rdxd4 {[%clk
0:00:11.5]} 25. exd4 {[%clk 0:01:28.3]} 25... Qxd4 {[%clk 0:00:10.8]} 26. Rc5
{[%clk 0:00:52.6]} 26... Qd1+ {[%clk 0:00:10.3]} 27. Kh2 {[%clk 0:00:52.2]}
27... Re1 {[%clk 0:00:10.4]} 28. Qf4 {[%clk 0:00:49.8]} 28... Rh1+ {[%clk
0:00:10.1]} 29. Kg3 {[%clk 0:00:49.5]} 29... Qd3+ {[%clk 0:00:10.2]} 30. f3
{[%clk 0:00:47.3]} 30... Qg6+ {[%clk 0:00:08.2]} 31. Kf2 {[%clk 0:00:45]} 31...
Rd1 {[%clk 0:00:06.8]} 32. Rc2 {[%clk 0:00:36.5]} 32... Bf5 {[%clk 0:00:05.5]}
33. Re2 {[%clk 0:00:34.8]} 33... Qb6+ {[%clk 0:00:04.7]} 34. Kg3 {[%clk
0:00:32.1]} 34... Qg6+ {[%clk 0:00:04.3]} 35. Kh2 {[%clk 0:00:32.3]} 35... Qf6
{[%clk 0:00:01.9]} 36. Rc5 {[%clk 0:00:29.8]} 36... Bg6 {[%clk 0:00:02.1]} 37.
Qxf6 {[%clk 0:00:29.5]} 37... gxf6 {[%clk 0:00:03]} 38. Rf2 {[%clk 0:00:28.9]}
38... f5 {[%clk 0:00:03]} 39. Kg3 {[%clk 0:00:29.2]} 39... h5 {[%clk 0:00:03.1]}
40. h4 {[%clk 0:00:29.1]} 40... Kg7 {[%clk 0:00:03.5]} 41. Rc6 {[%clk
0:00:28.7]} 41... a5 {[%clk 0:00:03.6]} 42. Kf4 {[%clk 0:00:28.8]} 42... b4
{[%clk 0:00:03.7]} 43. axb4 {[%clk 0:00:27.8]} 43... Rd4+ {[%clk 0:00:03.8]} 44.
Kg3 {[%clk 0:00:26.5]} 44... Rxb4 {[%clk 0:00:04.7]} 45. Rd2 {[%clk 0:00:26.2]}
45... f4+ {[%clk 0:00:05.6]} 46. Kh3 {[%clk 0:00:26.4]} 46... a4 {[%clk
0:00:06.2]} 47. Kh2 {[%clk 0:00:26.8]} 47... Rb3 {[%clk 0:00:05.9]} 48. Rcd6
{[%clk 0:00:25.9]} 48... a3 {[%clk 0:00:05.9]} 49. bxa3 {[%clk 0:00:25.5]} 49...
Rxa3 {[%clk 0:00:06.5]} 50. R6d4 {[%clk 0:00:26.1]} 50... Ra1 {[%clk 0:00:05.6]}
51. Rxf4 {[%clk 0:00:26.4]} 51... Rb1 {[%clk 0:00:05.4]} 52. Kg3 {[%clk
0:00:26]} 52... Rb3 {[%clk 0:00:05.2]} 53. Rfd4 {[%clk 0:00:26]} 53... Rb1
{[%clk 0:00:05.1]} 54. Rd5 {[%clk 0:00:26.4]} 54... Rb4 {[%clk 0:00:05]} 55. Rc5
{[%clk 0:00:26.3]} 55... Ra4 {[%clk 0:00:04.9]} 56. Rdd5 {[%clk 0:00:26.8]}
56... Ra1 {[%clk 0:00:03.9]} 57. Rxh5 {[%clk 0:00:26.8]} 57... Bxh5 {[%clk
0:00:03.7]} 58. Rxh5 {[%clk 0:00:27.5]} 58... Rh1 {[%clk 0:00:03.7]} 59. Rg5+
{[%clk 0:00:27.6]} 59... Kf6 {[%clk 0:00:03.7]} 60. Kg4 {[%clk 0:00:27.3]} 60...
Rg1 {[%clk 0:00:02.8]} 61. g3 {[%clk 0:00:27.6]} 61... Rf1 {[%clk 0:00:02.9]}
62. Rf5+ {[%clk 0:00:27.8]} 62... Ke6 {[%clk 0:00:03.4]} 63. f4 {[%clk 0:00:27]}
63... Rg1 {[%clk 0:00:03.5]} 64. Re5+ {[%clk 0:00:25.3]} 64... Kf6 {[%clk
0:00:03.6]} 65. h5 {[%clk 0:00:25.4]} 65... Rf1 {[%clk 0:00:02.9]} 66. Rf5+
{[%clk 0:00:25.5]} 66... Kg7 {[%clk 0:00:03.2]} 67. Kg5 {[%clk 0:00:25.7]} 67...
Rg1 {[%clk 0:00:02.9]} 68. g4 {[%clk 0:00:26]} 68... Kf8 {[%clk 0:00:02.4]} 69.
Rc5 {[%clk 0:00:24.9]} 69... Ra1 {[%clk 0:00:02.7]} 70. h6 {[%clk 0:00:24.6]}
1-0

[Event "*** SCC Grand Prix: Titled Tuesday Blitz"]
[Site "Chess.com"]
[Date "2020.07.21"]
[Round "7"]
[White "rasmussvane"]
[Black "Paladin61"]
[Result "0-1"]
[WhiteElo "2865"]
[BlackElo "2637"]
[TimeControl "180+1"]
[EndTime "11:19:06 PDT"]
[Termination "Paladin61 won by checkmate"]

1. Nf3 {[%clk 0:03:00.9]} 1... Nf6 {[%clk 0:02:59.7]} 2. g3 {[%clk 0:03:01]}
2... g6 {[%clk 0:03:00.1]} 3. Bg2 {[%clk 0:03:01.6]} 3... Bg7 {[%clk 0:03:01]}
4. O-O {[%clk 0:03:02.2]} 4... O-O {[%clk 0:03:01.9]} 5. d4 {[%clk 0:03:02.4]}
5... d6 {[%clk 0:03:02]} 6. Re1 {[%clk 0:03:02.8]} 6... Nbd7 {[%clk 0:02:53.7]}
7. e4 {[%clk 0:03:02.5]} 7... e5 {[%clk 0:02:54]} 8. Nc3 {[%clk 0:03:02.6]} 8...
c6 {[%clk 0:02:51.5]} 9. a4 {[%clk 0:03:02.1]} 9... Qc7 {[%clk 0:02:43.7]} 10.
h3 {[%clk 0:03:00.5]} 10... Re8 {[%clk 0:02:43.3]} 11. Be3 {[%clk 0:02:59.3]}
11... b6 {[%clk 0:02:29.4]} 12. Qd2 {[%clk 0:02:46.5]} 12... a6 {[%clk
0:02:21.7]} 13. g4 {[%clk 0:02:45.6]} 13... Bb7 {[%clk 0:02:19.4]} 14. Rad1
{[%clk 0:02:43.8]} 14... b5 {[%clk 0:02:09.7]} 15. dxe5 {[%clk 0:02:00.3]} 15...
Nxe5 {[%clk 0:02:08.9]} 16. Nxe5 {[%clk 0:01:55.3]} 16... dxe5 {[%clk
0:02:07.8]} 17. Qd6 {[%clk 0:01:54.2]} 17... Rac8 {[%clk 0:01:37.1]} 18. Bg5
{[%clk 0:01:46.3]} 18... Re6 {[%clk 0:01:07]} 19. Qxc7 {[%clk 0:01:46.4]} 19...
Rxc7 {[%clk 0:01:07.1]} 20. Rd8+ {[%clk 0:01:47.3]} 20... Ne8 {[%clk 0:01:07.2]}
21. Red1 {[%clk 0:01:41.5]} 21... b4 {[%clk 0:00:55.8]} 22. Ne2 {[%clk
0:01:27.2]} 22... c5 {[%clk 0:00:50.2]} 23. b3 {[%clk 0:01:18.3]} 23... f6
{[%clk 0:00:32.3]} 24. Be3 {[%clk 0:01:18]} 24... Bf8 {[%clk 0:00:30.2]} 25. Ng3
{[%clk 0:01:15.1]} 25... Rd6 {[%clk 0:00:24.7]} 26. R1xd6 {[%clk 0:01:07.7]}
26... Nxd6 {[%clk 0:00:24.5]} 27. Bh6 {[%clk 0:01:07.8]} 27... Rc8 {[%clk
0:00:19.5]} 28. Rd7 {[%clk 0:00:53.8]} 28... Bc6 {[%clk 0:00:15.5]} 29. Bxf8
{[%clk 0:00:52.6]} 29... Bxd7 {[%clk 0:00:13.4]} 30. Bxd6 {[%clk 0:00:52.7]}
30... Kf7 {[%clk 0:00:06.4]} 31. Bf1 {[%clk 0:00:29.1]} 31... Ke6 {[%clk
0:00:06.3]} 32. Bxa6 {[%clk 0:00:28.4]} 32... Ra8 {[%clk 0:00:06.6]} 33. Bb7
{[%clk 0:00:21.4]} 33... Ra7 {[%clk 0:00:06.1]} 34. Bd5+ {[%clk 0:00:13.8]}
34... Kxd6 {[%clk 0:00:06.3]} 35. Nf1 {[%clk 0:00:14.7]} 35... Be6 {[%clk
0:00:06.5]} 36. Ne3 {[%clk 0:00:14.7]} 36... Bxd5 {[%clk 0:00:06.2]} 37. Nxd5
{[%clk 0:00:15.3]} 37... f5 {[%clk 0:00:05.7]} 38. f3 {[%clk 0:00:15.7]} 38...
fxe4 {[%clk 0:00:05]} 39. fxe4 {[%clk 0:00:16.6]} 39... c4 {[%clk 0:00:05.1]}
40. Kf2 {[%clk 0:00:11.8]} 40... cxb3 {[%clk 0:00:04.4]} 41. cxb3 {[%clk
0:00:12.7]} 41... Kc5 {[%clk 0:00:04.6]} 42. Ke3 {[%clk 0:00:10.7]} 42... Rf7
{[%clk 0:00:03.5]} 43. g5 {[%clk 0:00:11.1]} 43... Rf1 {[%clk 0:00:03.8]} 44.
Nf6 {[%clk 0:00:10.9]} 44... Rh1 {[%clk 0:00:03.9]} 45. Kd2 {[%clk 0:00:04.9]}
45... Rxh3 {[%clk 0:00:04.8]} 46. Kc2 {[%clk 0:00:05.5]} 46... Rh2+ {[%clk
0:00:04.8]} 47. Kd3 {[%clk 0:00:05.6]} 47... Rh3+ {[%clk 0:00:05.3]} 48. Kc2
{[%clk 0:00:06.1]} 48... h6 {[%clk 0:00:06.2]} 49. gxh6 {[%clk 0:00:05.5]} 49...
Rxh6 {[%clk 0:00:05.4]} 50. Ng4 {[%clk 0:00:06]} 50... Rh4 {[%clk 0:00:04.4]}
51. Nxe5 {[%clk 0:00:05.1]} 51... g5 {[%clk 0:00:03.9]} 52. Nd3+ {[%clk
0:00:04.8]} 52... Kd4 {[%clk 0:00:04.2]} 53. Nxb4 {[%clk 0:00:05.1]} 53... Rh2+
{[%clk 0:00:03.9]} 54. Kd1 {[%clk 0:00:04.4]} 54... g4 {[%clk 0:00:04.8]} 55.
Ke1 {[%clk 0:00:03.9]} 55... Kxe4 {[%clk 0:00:04.1]} 56. Kf1 {[%clk 0:00:03.6]}
56... Kf3 {[%clk 0:00:04.4]} 57. Kg1 {[%clk 0:00:03.7]} 57... Rd2 {[%clk
0:00:04.3]} 58. Nc6 {[%clk 0:00:03.1]} 58... Rd1+ {[%clk 0:00:04.5]} 59. Kh2
{[%clk 0:00:03.1]} 59... g3+ {[%clk 0:00:05.4]} 60. Kh3 {[%clk 0:00:04]} 60...
Rh1# {[%clk 0:00:06.2]} 0-1

[Event "*** SCC Grand Prix: Titled Tuesday Blitz"]
[Site "Chess.com"]
[Date "2020.07.21"]
[Round "7"]
[White "VovenRogel"]
[Black "Gabix_94"]
[Result "0-1"]
[WhiteElo "2746"]
[BlackElo "2895"]
[TimeControl "180+1"]
[EndTime "11:19:09 PDT"]
[Termination "Gabix_94 won by checkmate"]

1. d4 {[%clk 0:03:00.9]} 1... Nf6 {[%clk 0:02:59.2]} 2. c4 {[%clk 0:03:00.1]}
2... c5 {[%clk 0:02:59.5]} 3. Nf3 {[%clk 0:02:56.9]} 3... cxd4 {[%clk
0:02:59.5]} 4. Nxd4 {[%clk 0:02:57.8]} 4... Nc6 {[%clk 0:02:58.2]} 5. Nc3 {[%clk
0:02:57.2]} 5... Qb6 {[%clk 0:02:57.8]} 6. Nb3 {[%clk 0:02:47.1]} 6... e6 {[%clk
0:02:57.4]} 7. Be3 {[%clk 0:02:40.9]} 7... Qc7 {[%clk 0:02:54]} 8. g3 {[%clk
0:02:34.1]} 8... Ne5 {[%clk 0:02:48.8]} 9. c5 {[%clk 0:02:28.7]} 9... Qc6 {[%clk
0:02:41.3]} 10. Rg1 {[%clk 0:02:27.7]} 10... Nc4 {[%clk 0:02:20.7]} 11. Bd4
{[%clk 0:02:21]} 11... d5 {[%clk 0:02:11.9]} 12. cxd6 {[%clk 0:02:09.3]} 12...
Bxd6 {[%clk 0:02:08.3]} 13. Bg2 {[%clk 0:02:08.6]} 13... Qa6 {[%clk 0:01:51.3]}
14. Nc5 {[%clk 0:01:57.9]} 14... Qa5 {[%clk 0:01:46.9]} 15. b4 {[%clk
0:01:37.3]} 15... Qxb4 {[%clk 0:01:38.4]} 16. Rb1 {[%clk 0:01:35.9]} 16... Qa5
{[%clk 0:01:38.6]} 17. Rb5 {[%clk 0:01:33.6]} 17... Qc7 {[%clk 0:01:30.9]} 18.
Qa4 {[%clk 0:01:31.8]} 18... O-O {[%clk 0:01:27]} 19. Qxc4 {[%clk 0:01:27.7]}
19... a6 {[%clk 0:01:24.3]} 20. Rb1 {[%clk 0:01:15]} 20... e5 {[%clk 0:01:16.6]}
21. Be3 {[%clk 0:01:11.5]} 21... Be6 {[%clk 0:01:15.2]} 22. Nd5 {[%clk
0:00:31.4]} 22... Nxd5 {[%clk 0:01:10]} 23. Bxd5 {[%clk 0:00:30.9]} 23... Qa5+
{[%clk 0:01:06.9]} 24. Kf1 {[%clk 0:00:19]} 24... Bxc5 {[%clk 0:01:03.1]} 25.
Bxc5 {[%clk 0:00:09.1]} 25... Rac8 {[%clk 0:00:54.6]} 26. Bxe6 {[%clk
0:00:05.2]} 26... Rxc5 {[%clk 0:00:54.6]} 27. Qb3 {[%clk 0:00:02.8]} 27... fxe6
{[%clk 0:00:51]} 28. Qxe6+ {[%clk 0:00:02.5]} 28... Kh8 {[%clk 0:00:51.5]} 29.
Kg2 {[%clk 0:00:03.4]} 29... Rc6 {[%clk 0:00:46.7]} 30. Qe7 {[%clk 0:00:02.1]}
30... Rcf6 {[%clk 0:00:41.7]} 31. f3 {[%clk 0:00:01.6]} 31... Qxa2 {[%clk
0:00:40]} 32. Qxb7 {[%clk 0:00:01.6]} 32... Qxe2+ {[%clk 0:00:37.9]} 33. Kh1
{[%clk 0:00:02.5]} 33... Rxf3 {[%clk 0:00:33.8]} 34. Rg2 {[%clk 0:00:02.1]}
34... Rf1+ {[%clk 0:00:32.4]} 35. Rxf1 {[%clk 0:00:02]} 35... Qxf1+ {[%clk
0:00:22.7]} 36. Rg1 {[%clk 0:00:02.9]} 36... Qb5 {[%clk 0:00:22.6]} 37. Qe4
{[%clk 0:00:02]} 37... h6 {[%clk 0:00:21.7]} 38. Re1 {[%clk 0:00:01.9]} 38...
Re8 {[%clk 0:00:18.9]} 39. Qg2 {[%clk 0:00:02.8]} 39... e4 {[%clk 0:00:18]} 40.
Rg1 {[%clk 0:00:03.7]} 40... e3 {[%clk 0:00:18.1]} 41. Re1 {[%clk 0:00:03.9]}
41... e2 {[%clk 0:00:18]} 42. h3 {[%clk 0:00:04.8]} 42... a5 {[%clk 0:00:17.8]}
43. Qf2 {[%clk 0:00:05.7]} 43... a4 {[%clk 0:00:17.8]} 44. g4 {[%clk 0:00:06.6]}
44... a3 {[%clk 0:00:17.9]} 45. Qf7 {[%clk 0:00:07.5]} 45... Qc6+ {[%clk
0:00:16]} 46. Kh2 {[%clk 0:00:07.1]} 46... Qd6+ {[%clk 0:00:15.1]} 47. Kg2
{[%clk 0:00:06.1]} 47... Qe6 {[%clk 0:00:15]} 48. Qf3 {[%clk 0:00:04]} 48... a2
{[%clk 0:00:14.3]} 49. Kg1 {[%clk 0:00:03.7]} 49... Qb6+ {[%clk 0:00:13.3]} 50.
Kg2 {[%clk 0:00:03.8]} 50... Qb4 {[%clk 0:00:10.3]} 51. Qf7 {[%clk 0:00:03.5]}
51... Qb5 {[%clk 0:00:07.8]} 52. Qc7 {[%clk 0:00:02.5]} 52... Qd5+ {[%clk
0:00:06.4]} 53. Kf2 {[%clk 0:00:02.5]} 53... Qd4+ {[%clk 0:00:06.8]} 54. Kg2
{[%clk 0:00:01.7]} 54... Qe4+ {[%clk 0:00:07.3]} 55. Kg3 {[%clk 0:00:02.6]}
55... Qe3+ {[%clk 0:00:07.7]} 56. Kg2 {[%clk 0:00:02.8]} 56... Rf8 {[%clk
0:00:08.6]} 57. Qg3 {[%clk 0:00:01.6]} 57... Qxg3+ {[%clk 0:00:08.4]} 58. Kxg3
{[%clk 0:00:02.5]} 58... Rf1 {[%clk 0:00:08.8]} 59. Rxe2 {[%clk 0:00:03.4]}
59... a1=Q {[%clk 0:00:09]} 60. Re8+ {[%clk 0:00:04.3]} 60... Kh7 {[%clk
0:00:09.5]} 61. Re3 {[%clk 0:00:05.2]} 61... Qd4 {[%clk 0:00:09.6]} 62. Rf3
{[%clk 0:00:04.4]} 62... Rxf3+ {[%clk 0:00:09.3]} 63. Kxf3 {[%clk 0:00:05.3]}
63... g5 {[%clk 0:00:09.9]} 64. Kg3 {[%clk 0:00:06.2]} 64... Kg6 {[%clk
0:00:10.4]} 65. Kg2 {[%clk 0:00:07.1]} 65... Kf6 {[%clk 0:00:10.9]} 66. Kg3
{[%clk 0:00:08]} 66... Ke5 {[%clk 0:00:11.4]} 67. Kg2 {[%clk 0:00:08.9]} 67...
Kf4 {[%clk 0:00:11.8]} 68. Kh1 {[%clk 0:00:07.1]} 68... Qd2 {[%clk 0:00:11.8]}
69. h4 {[%clk 0:00:07.6]} 69... Kg3 {[%clk 0:00:12.3]} 70. hxg5 {[%clk
0:00:07.6]} 70... h5 {[%clk 0:00:12.4]} 71. gxh5 {[%clk 0:00:06.1]} 71... Qf2
{[%clk 0:00:12.2]} 72. g6 {[%clk 0:00:04.8]} 72... Qe2 {[%clk 0:00:10]} 73. g7
{[%clk 0:00:04.5]} 73... Qf1# {[%clk 0:00:10.3]} 0-1

[Event "*** SCC Grand Prix: Titled Tuesday Blitz"]
[Site "Chess.com"]
[Date "2020.07.21"]
[Round "7"]
[White "Virgo15"]
[Black "ChessAurochs"]
[Result "0-1"]
[WhiteElo "2676"]
[BlackElo "2569"]
[TimeControl "180+1"]
[EndTime "11:19:09 PDT"]
[Termination "ChessAurochs won on time"]

1. d4 {[%clk 0:03:00.9]} 1... Nf6 {[%clk 0:02:59.7]} 2. Nf3 {[%clk 0:03:00.3]}
2... e6 {[%clk 0:02:57.4]} 3. Bf4 {[%clk 0:03:00.2]} 3... d5 {[%clk 0:02:56.7]}
4. e3 {[%clk 0:03:00.3]} 4... Bd6 {[%clk 0:02:56.4]} 5. Bg3 {[%clk 0:03:00.2]}
5... O-O {[%clk 0:02:54.7]} 6. Nbd2 {[%clk 0:03:00.3]} 6... c5 {[%clk
0:02:54.3]} 7. c3 {[%clk 0:02:58.3]} 7... Qc7 {[%clk 0:02:54.7]} 8. dxc5 {[%clk
0:02:58.6]} 8... Qxc5 {[%clk 0:02:54.2]} 9. Bd3 {[%clk 0:02:59.2]} 9... Nbd7
{[%clk 0:02:53.2]} 10. Qe2 {[%clk 0:02:59.2]} 10... h6 {[%clk 0:02:52.8]} 11.
Rd1 {[%clk 0:02:56.2]} 11... Rb8 {[%clk 0:02:48.6]} 12. e4 {[%clk 0:02:52]}
12... Bxg3 {[%clk 0:02:48]} 13. hxg3 {[%clk 0:02:51.2]} 13... dxe4 {[%clk
0:02:48.4]} 14. Bxe4 {[%clk 0:02:47.3]} 14... b5 {[%clk 0:02:47.7]} 15. O-O
{[%clk 0:02:32]} 15... Qc7 {[%clk 0:02:31.9]} 16. Rfe1 {[%clk 0:02:16.1]} 16...
Nxe4 {[%clk 0:01:59]} 17. Nxe4 {[%clk 0:02:17]} 17... Bb7 {[%clk 0:01:56.6]} 18.
Rd2 {[%clk 0:02:00.1]} 18... Bxe4 {[%clk 0:01:49.8]} 19. Qxe4 {[%clk 0:01:58.7]}
19... Nf6 {[%clk 0:01:47.7]} 20. Qe5 {[%clk 0:01:41.5]} 20... Qxe5 {[%clk
0:01:46.3]} 21. Nxe5 {[%clk 0:01:42.4]} 21... Rfd8 {[%clk 0:01:43.6]} 22. Red1
{[%clk 0:01:40.9]} 22... Rxd2 {[%clk 0:01:43.5]} 23. Rxd2 {[%clk 0:01:41.4]}
23... Nd5 {[%clk 0:01:43.2]} 24. Nc6 {[%clk 0:01:38.4]} 24... Rb7 {[%clk
0:01:41.5]} 25. a3 {[%clk 0:01:32.7]} 25... Kf8 {[%clk 0:01:36]} 26. Nb4 {[%clk
0:01:32.3]} 26... Nxb4 {[%clk 0:01:30.5]} 27. axb4 {[%clk 0:01:33.2]} 27... Ke7
{[%clk 0:01:31]} 28. Rd1 {[%clk 0:01:32.5]} 28... Rb6 {[%clk 0:01:27.5]} 29. Ra1
{[%clk 0:01:26.3]} 29... a6 {[%clk 0:01:27.7]} 30. Kf1 {[%clk 0:01:26.7]} 30...
Rd6 {[%clk 0:01:21.4]} 31. Ke2 {[%clk 0:01:27.1]} 31... h5 {[%clk 0:01:20.8]}
32. Ke3 {[%clk 0:01:17.1]} 32... g6 {[%clk 0:01:18.6]} 33. b3 {[%clk 0:01:16.7]}
33... Rc6 {[%clk 0:00:59.7]} 34. Kd4 {[%clk 0:01:15.3]} 34... e5+ {[%clk
0:01:00.1]} 35. Kd3 {[%clk 0:01:10.2]} 35... Rd6+ {[%clk 0:00:54.3]} 36. Ke3
{[%clk 0:01:03.3]} 36... Rc6 {[%clk 0:00:52.3]} 37. Kd3 {[%clk 0:00:58.7]} 37...
Rd6+ {[%clk 0:00:47.6]} 38. Ke2 {[%clk 0:00:55.3]} 38... Rc6 {[%clk 0:00:47.6]}
39. Rc1 {[%clk 0:00:55]} 39... Rd6 {[%clk 0:00:35.5]} 40. Ke3 {[%clk 0:00:51.9]}
40... Ke6 {[%clk 0:00:32.3]} 41. f3 {[%clk 0:00:44.9]} 41... Kf5 {[%clk
0:00:29.5]} 42. c4 {[%clk 0:00:41.9]} 42... Rd4 {[%clk 0:00:24.7]} 43. c5 {[%clk
0:00:37.7]} 43... Ke6 {[%clk 0:00:23.9]} 44. c6 {[%clk 0:00:37.6]} 44... Rd8
{[%clk 0:00:23.8]} 45. c7 {[%clk 0:00:36]} 45... Rc8 {[%clk 0:00:23.6]} 46. g4
{[%clk 0:00:28.6]} 46... hxg4 {[%clk 0:00:22.6]} 47. fxg4 {[%clk 0:00:28.5]}
47... f5 {[%clk 0:00:23]} 48. Rc6+ {[%clk 0:00:25.9]} 48... Kd5 {[%clk
0:00:21.9]} 49. Rxg6 {[%clk 0:00:15.2]} 49... f4+ {[%clk 0:00:21.8]} 50. Kf3
{[%clk 0:00:14]} 50... Rxc7 {[%clk 0:00:22.2]} 51. Rxa6 {[%clk 0:00:09.1]} 51...
Rc3+ {[%clk 0:00:22.6]} 52. Kf2 {[%clk 0:00:09.4]} 52... Rxb3 {[%clk 0:00:22.5]}
53. g5 {[%clk 0:00:09.6]} 53... Rg3 {[%clk 0:00:22.3]} 54. g6 {[%clk 0:00:09]}
54... e4 {[%clk 0:00:20.5]} 55. Rb6 {[%clk 0:00:06.6]} 55... e3+ {[%clk
0:00:20.4]} 56. Kf1 {[%clk 0:00:06.1]} 56... Kc4 {[%clk 0:00:20.8]} 57. Rf6
{[%clk 0:00:03.9]} 57... Kxb4 {[%clk 0:00:19.7]} 58. Rxf4+ {[%clk 0:00:03.9]}
58... Ka3 {[%clk 0:00:20]} 59. Rf6 {[%clk 0:00:03.7]} 59... b4 {[%clk
0:00:19.3]} 60. Ke2 {[%clk 0:00:03.2]} 60... b3 {[%clk 0:00:18.4]} 61. Ra6+
{[%clk 0:00:03.1]} 61... Kb2 {[%clk 0:00:18.8]} 62. Rb6 {[%clk 0:00:02.4]} 62...
Ka2 {[%clk 0:00:18.7]} 63. Ra6+ {[%clk 0:00:02.7]} 63... Kb1 {[%clk 0:00:19]}
64. Rb6 {[%clk 0:00:03.6]} 64... b2 {[%clk 0:00:19.5]} 65. Ra6 {[%clk
0:00:03.9]} 65... Rxg2+ {[%clk 0:00:18]} 66. Kxe3 {[%clk 0:00:04.2]} 66... Kc2
{[%clk 0:00:18.2]} 67. Rc6+ {[%clk 0:00:04.2]} 67... Kd1 {[%clk 0:00:18.6]} 68.
Rd6+ {[%clk 0:00:03.8]} 68... Kc1 {[%clk 0:00:18.2]} 69. Rb6 {[%clk 0:00:04.7]}
69... b1=Q {[%clk 0:00:15.5]} 70. Rxb1+ {[%clk 0:00:01.3]} 70... Kxb1 {[%clk
0:00:16.4]} 71. Kf4 {[%clk 0:00:01.5]} 71... Rxg6 {[%clk 0:00:16]} 0-1